Cogmind - Beta 9.6 @@@ ROGUE MODE // 2020.05.13 @ 05:40:07 Player: cptwinky Result: Destroyed by S-43 Plague with Heavy Machine Gun Performance ------------- Evolutions (9) 4500 Regions Visited (26) 5200 Robots Destroyed (328) 1640 Value Destroyed (12783) 12783 Prototype IDs (49) 980 Alien Tech Used (2) 400 Bonus (2313) 2313 TOTAL SCORE: 27816 Bonus ------- High Alert Combat Kills 696 Follower Combat Kills 2077 Entered Garrisons 200 Used RIF Installer 500 Aligned with FarCom 300 Friendly Fire -1460 Cogmind --------- Core Integrity 0/1600 Matter 282/300 Energy 98/100 System Corruption 13% Temperature Cool (0) Movement Core (50) Location -1/Access Parts ------- > --- POWER (2) -------- (None) > --- PROPULSION (4) --- (None) > --- UTILITY (17) ----- (None) > --- WEAPON (2) ------- (None) > --- INVENTORY (4) ---- Improved Datajack Enhanced Force Lance Peak State ------------ > --- POWER ------------ Heavy Antimatter Reactor > --- PROPULSION ------- Armored Medium Treads Biometal Heavy Treads > --- UTILITY ---------- Advanced Coolant Injector Large Storage Unit Large Storage Unit High-capacity Storage Unit High-capacity Storage Unit High-capacity Storage Unit Advanced Transmission Jammer Improved Medium Armor Plating Improved Medium Armor Plating Insulated Plating Improved Shield Generator Improved Trap Extractor Improved Field Recycling Unit > --- WEAPON ----------- HERF Cannon Neutron Missile Launcher > --- INVENTORY -------- Medium Treads Medium Treads Armored Heavy Treads Armored Heavy Treads Advanced Heavy Treads Advanced Energy Well Matter Compressor Advanced Focal Shield Relay Coupler [NC] Relay Coupler [Grunt] Relay Coupler [Sentry] Transdimensional Reconstructor Guided Plasma Cannon Improved Matter Neutralizer Hypervelocity Gauss Rifle Neutron Missile Launcher Improved Datajack Advanced Remote Datajack Force Lance Force Lance Segregator Trap Segregator Trap Segregator Trap Segregator Trap Segregator Trap Tiamat Bomb Trap Tiamat Bomb Trap Tiamat Bomb Trap Tiamat Bomb Trap Fusion Bomb Trap Fusion Bomb Trap Fusion Bomb Trap Dirty Bomb Trap Dirty Bomb Trap Dirty Bomb Trap EM Surge Trap EM Surge Trap [Rating: 113] Favorites ----------- Power Reinforced Deuterium Engine Engine Reinforced Deuterium Engine Power Core Micro Fission Core Reactor Antimatter Reactor Propulsion Light Treads Treads Light Treads Leg Aluminum Leg Wheel Armored Huge Wheel Utility High-capacity Storage Unit Device Coolant Injector Storage High-capacity Storage Unit Processor Improved Signal Interpreter Hackware Relay Coupler [Programmer] Protection Improved Medium Armor Plating Weapon Precision Rocket Launcher Energy Gun Shock Rifle Energy Cannon Advanced Beam Cannon Ballistic Gun Heavy Assault Rifle Ballistic Cannon Bore Cannon Launcher Precision Rocket Launcher Special Weapon Enhanced Flamer Impact Weapon Flail Slashing Weapon Phasing Sabre Piercing Weapon Force Lance Special Melee Weapon Improved Datajack Build | -11 -10 -10 -9 -9 -9 -8 -8 -8 -7 -7 -7 -7 -6 -6 -6 -5 -5 -5 -5 -4 -4 -4 -4 -3 -2 -1 ------- Run | Scr Mat Min Mat Min Exi Min Mat Sto Fac Low Low Zio Pro Fac Gar Fac Upp Upp Zhi Pro Fac Upp Upp Res Res Acc Slots Evolved 18 | . . . 2 . . . 2 . 2 . . . . 2 . 2 . . . . 2 . . 2 2 2 Power 1 | . . . . . . . . . . . . . . . . . . . . . 1 . . . . . Propulsion 2 | . . . . . . . 1 . . . . . . . . . . . . . . . . . . 1 Utility 15 | . . . 2 . . . 1 . 2 . . . . 2 . 2 . . . . 1 . . 2 2 1 Weapon . | . . . . . . . . . . . . . . . . . . . . . . . . . . . Parts Attached 417 | 7 6 7 39 12 1 5 29 35 36 7 7 3 13 4 42 31 4 4 7 6 11 16 3 48 21 13 Power 23 | 1 . 2 4 . . . 1 3 1 . . . . . 2 . . . 2 . 1 . 1 1 3 1 Engine 17 | 1 . 2 4 . . . 1 3 1 . . . . . 2 . . . 1 . 1 . . . . 1 Core 1 | . . . . . . . . . . . . . . . . . . . . . . . . . 1 . Reactor 5 | . . . . . . . . . . . . . . . . . . . 1 . . . 1 1 2 . Propulsion 58 | 2 1 1 5 2 . . 6 9 8 1 . . . 1 5 4 . . . . . 1 . 3 5 4 Treads 41 | 1 1 1 4 . . . 6 7 6 . . . . 1 5 1 . . . . . . . 2 3 3 Leg 2 | . . . . . . . . 1 . . . . . . . . . . . . . . . . . 1 Wheel 15 | 1 . . 1 2 . . . 1 2 1 . . . . . 3 . . . . . 1 . 1 2 . Hover . | . . . . . . . . . . . . . . . . . . . . . . . . . . . Flight . | . . . . . . . . . . . . . . . . . . . . . . . . . . . Utility 139 | 2 2 . 11 . . . 6 8 13 4 . 1 4 2 17 19 2 3 3 2 9 8 . 19 4 . Device 50 | . . . . . . . 3 2 9 3 . . 2 . 8 2 1 1 2 1 4 3 . 7 2 . Storage 18 | 2 2 . 7 . . . . . 1 . . 1 . . . 2 . . . . 2 . . 1 . . Processor 6 | . . . . . . . 1 1 . 1 . . . . . . . . . . . 1 . 1 1 . Hackware 18 | . . . . . . . 1 2 2 . . . . 1 2 3 . 1 1 1 . 1 . 2 1 . Protection 47 | . . . 4 . . . 1 3 1 . . . 2 1 7 12 1 1 . . 3 3 . 8 . . Artifact . | . . . . . . . . . . . . . . . . . . . . . . . . . . . Weapon 197 | 2 3 4 19 10 1 5 16 15 14 2 7 2 9 1 18 8 2 1 2 4 1 7 2 25 9 8 Energy Gun 33 | . 3 2 11 . . . 10 4 . . . . . . 1 . . . . . . . . 2 . . Energy Cannon 43 | . . . 1 . . 1 . 7 2 2 6 . 3 1 9 1 . . . . . . . 5 4 1 Ballistic Gun 28 | 2 . . 4 5 1 2 . . 6 . . . 1 . . 1 . 1 . . 1 . 1 2 1 . Ballistic Cannon 1 | . . . . . . . . . . . . . . . . . . . . . . 1 . . . . Launcher 29 | . . . 2 4 . 2 4 2 . . . 1 1 . 3 1 1 . 1 . . 1 . 3 3 . Special Weapon 12 | . . 2 . . . . . . . . . . 3 . . . . . . . . 2 . 2 1 2 Impact Weapon 5 | . . . 1 1 . . 2 1 . . . . . . . . . . . . . . . . . . Slashing Weapon 17 | . . . . . . . . 1 5 . 1 1 . . 2 3 1 . 1 2 . . . . . . Piercing Weapon 13 | . . . . . . . . . . . . . . . . . . . . . . 2 . 6 . 5 Special Melee Weapon 16 | . . . . . . . . . 1 . . . 1 . 3 2 . . . 2 . 1 1 5 . . Unidentified Prototypes 13 | . . . 4 . . . . 2 . . . . 1 . . . . . 2 . . . . 2 2 . Parts Lost 94 | . . 1 13 . . . 4 11 . . . . . . 12 . . . . . . 4 . 13 14 22 Power 9 | . . . 1 . . . . . . . . . . . 1 . . . . . . . . 2 3 2 Propulsion 18 | . . 1 1 . . . 2 3 . . . . . . 1 . . . . . . 1 . 2 2 5 Utility 27 | . . . 1 . . . 1 2 . . . . . . 5 . . . . . . 1 . 8 5 4 Weapon 35 | . . . 10 . . . 1 6 . . . . . . 5 . . . . . . 2 . 1 4 6 Highest Loss Streak 11 | . . 1 3 . . . 1 6 . . . . . . 3 . . . . . . 2 . 4 9 11 Average Slot Usage (%) 92 | . 100 100 96 100 100 100 99 98 99 98 92 92 89 85 94 88 88 88 87 83 88 85 89 83 76 27 Engine 7 | . 14 14 11 11 11 11 9 9 7 7 7 7 7 6 6 5 5 5 5 5 10 10 6 3 . . Treads 10 | . 14 14 11 5 . . 24 24 19 7 7 7 7 6 17 5 5 5 5 5 5 2 . 1 3 4 Wheel 6 | . 14 14 10 16 22 22 2 1 3 13 7 7 7 6 1 5 5 5 5 5 5 5 10 6 3 . Device 7 | . . . . . . . 10 4 6 15 15 12 7 6 11 5 9 5 4 1 9 9 10 6 19 4 Storage 25 | . 28 28 32 33 33 33 27 27 23 23 23 25 30 26 26 22 23 23 23 23 21 26 26 23 20 10 Processor 1 | . . . . . . . . 1 . 7 7 7 5 . . . . . . . . 4 5 . 3 2 Hackware 6 | . . . . . . . 3 6 16 . . . . 6 6 11 11 11 11 11 10 10 10 11 . 2 Protection 8 | . . . 8 11 11 11 3 4 6 7 7 7 6 12 10 16 12 17 17 17 14 6 5 13 7 . Energy Gun 2 | . 13 26 13 . . . 16 4 . . . . . . . . . . . . . . . . . . Energy Cannon 3 | . . . . . . . . 12 2 15 14 7 9 13 5 2 . . . . . . . 1 3 . Ballistic Gun 4 | . 14 . 8 21 22 21 . . 9 . . . . . . . 5 5 5 . 3 . 3 2 2 . Launcher 1 | . . . . . . . . . . . . . . . 3 . 1 5 4 5 1 2 5 1 1 . Naked Turns 39 | . . . . . . . . . . . . . . . . . . . . . . . . . . 39 Heaviest Build 226 | 15 41 41 113 114 113 113 114 118 129 127 127 159 165 165 169 191 191 192 192 192 211 206 199 226 207 126 Greatest Support 150 | 16 16 16 40 20 20 20 63 63 68 28 28 28 28 28 80 80 28 28 28 28 28 38 38 87 75 150 Greatest Overweight (x) 23 | . 2 2 7 11 5 5 5 9 9 5 4 5 5 5 5 7 6 6 6 6 7 7 5 7 7 23 Average Overweight (x) 4 | . . 2 4 5 5 5 1 1 2 4 4 4 5 5 2 5 6 6 6 6 6 6 5 5 6 . Largest Inventory Capacity 48 | 8 16 16 28 28 28 28 28 28 28 28 28 36 36 36 36 36 36 36 36 36 48 40 40 40 40 32 Average Capacity 31 | 5 9 16 24 28 28 28 28 28 28 28 28 30 36 36 36 35 36 36 36 36 36 40 40 40 39 21 Most Carried 40 | 4 13 15 25 28 28 28 28 28 28 28 28 36 36 36 36 36 36 36 36 36 37 40 40 40 40 27 Average Carried 29 | 3 6 14 20 27 27 27 27 26 27 26 27 29 35 35 28 33 35 35 35 35 35 38 40 37 38 17 Final Capacity 40 | 8 16 16 28 28 28 28 28 28 28 28 28 36 36 36 36 36 36 36 36 36 40 40 40 40 32 4 Final Carried 40 | 4 13 14 25 28 28 28 28 28 28 28 28 36 35 36 35 35 36 36 36 35 36 40 40 40 26 2 Class Distribution -------------------- 49% | Hauler-Mutant 22% | Trapper-Mutant 20% | Bothacker-Mutant 4% | Mutant Dominant Class ---------------- Mutant | -10/Materials Mutant | -10/Mines Hauler-Mutant | -9/Materials Hauler-Mutant | -9/Mines Hauler-Mutant | -9/Exiles Hauler-Mutant | -8/Mines Hauler-Mutant | -8/Materials Hauler-Mutant | -8/Storage Hauler-Mutant | -7/Factory Hauler-Mutant | -7/Lower Caves Hauler-Mutant | -7/Lower Caves Trapper-Mutant | -7/Zion Hauler-Mutant | -6/Proximity Caves Trapper-Mutant | -6/Factory Hauler-Mutant | -6/Garrison Bothacker-Mutant | -5/Factory Bothacker-Mutant | -5/Upper Caves Bothacker-Mutant | -5/Upper Caves Bothacker-Mutant | -5/Zhirov Bothacker-Mutant | -4/Proximity Caves Bothacker-Mutant | -4/Factory Trapper-Mutant | -4/Upper Caves Trapper-Mutant | -4/Upper Caves Trapper-Mutant | -3/Research Trapper-Mutant | -2/Research Trapper-Mutant | -1/Access Resources | -11 -10 -10 -9 -9 -9 -8 -8 -8 -7 -7 -7 -7 -6 -6 -6 -5 -5 -5 -5 -4 -4 -4 -4 -3 -2 -1 ----------- Run | Scr Mat Min Mat Min Exi Min Mat Sto Fac Low Low Zio Pro Fac Gar Fac Upp Upp Zhi Pro Fac Upp Upp Res Res Acc Matter Collected 8431 | 273 88 87 431 421 . 97 450 310 634 88 91 . 826 152 1895 290 60 134 . 129 97 566 105 733 218 256 Remotely . | . . . . . . . . . . . . . . . . . . . . . . . . . . . Salvage Created 12872 | 65 424 208 1471 406 . 219 1099 1940 829 177 199 . 414 150 1883 815 . 159 34 35 50 604 84 610 460 537 Parts 635 | 1 29 6 98 38 . 18 58 101 35 5 3 . 19 14 72 17 . 9 . 2 5 16 6 42 24 17 Haulers Intercepted 13 | . 1 . 4 . . . 2 5 . . . . . . . 1 . . . . . . . . . . Recyclers Shooed 8 | . . 1 . . . . 3 . . . . . . . . 3 . . . . . . . 1 . . Parts Field Recycled 21 | . . . . . . . . . . . . . . . . . . . . . . . . . 18 3 Retrieved Matter 333 | . . . . . . . . . . . . . . . . . . . . . . . . . 304 29 Parts Self-Destructed 87 | . . . . . . . . . . 5 14 . 18 . . . 13 17 . 5 . 12 3 . . . Prevented 11 | . . . . . . . . . . . . . . . . . 1 1 . 3 . 3 3 . . . Kills | -11 -10 -10 -9 -9 -9 -8 -8 -8 -7 -7 -7 -7 -6 -6 -6 -5 -5 -5 -5 -4 -4 -4 -4 -3 -2 -1 ------- Run | Scr Mat Min Mat Min Exi Min Mat Sto Fac Low Low Zio Pro Fac Gar Fac Upp Upp Zhi Pro Fac Upp Upp Res Res Acc Combat Hostiles Destroyed 264 | . 7 10 31 21 . 8 23 34 15 3 4 . 9 5 29 3 . 6 . 3 . 7 6 20 13 7 Melee 11 | . . . . . . . . . . . . . . . 1 2 . . . 1 . 1 . 1 . 5 Guns 71 | . 5 10 17 8 . 1 7 9 11 . . . . . . . . . . . . . . 1 2 . Cannons 74 | . . . . . . . . 21 3 3 4 . 4 5 18 1 . . . . . 4 . 4 7 . AOE 99 | . 1 . 13 13 . 7 14 3 1 . . . 5 . 8 . . 6 . 2 . 2 6 14 4 . Classes Destroyed 19 | 1 4 2 2 1 . 1 2 2 1 . 1 . 1 . 1 . . . . . . . . . . . Worker 11 | . . . . . . . 1 1 1 . . . . . . 1 . . . . 1 . . 6 . . Builder 11 | . 2 . 3 1 . . 2 2 . . . . . . . . . . . . . . . 1 . . Tunneler 3 | . . . . 1 . . . . 1 . . . . . . . . . . . . . . . 1 . Hauler 13 | . 1 . 4 . . . 2 5 . . . . . . . 1 . . . . . . . . . . Recycler 9 | 1 . . . . . . 3 . 1 . . . . . . 4 . . . . . . . . . . Minesweeper 4 | . . . . . . . . . . . 2 . . 1 . . . . . . . 1 . . . . Operator 4 | . 1 . . . . . 1 1 . . . . . . . . . . . . 1 . . . . . Watcher 6 | . . . . . . . 3 2 . . . . . . 1 . . . . . . . . . . . Swarmer 82 | . . 3 7 13 . 4 8 5 3 . 3 . 3 4 7 . . 3 . 3 . . 5 7 4 . Grunt 96 | . 7 1 16 7 . 4 11 20 5 . 1 . 4 . 9 1 . 2 . . . 1 . 4 . 3 Brawler 3 | . . . . . . . . . . . . . . . 2 . . 1 . . . . . . . . Duelist 9 | . . . 1 . . . 1 3 1 . . . 1 . . . . . . . . 2 . . . . Protector 2 | . . . . . . . . 1 . . . . . . . . . . . . . . . 1 . . Sentry 32 | . . . 7 . . . 3 4 3 1 . . . . 11 . . . . . . 1 . 1 1 . Hunter 14 | . . . . . . . . 1 1 1 . . . . . 1 . . . . . 2 1 1 4 2 Programmer 19 | . . . . . . . . . 2 1 . . 1 1 . 1 . . . . . 1 . 6 4 2 Zionite 1 | . . . . . . 1 . . . . . . . . . . . . . . . . . . . . Assembled 7 | . . 6 . 1 . . . . . . . . . . . . . . . . . . . . . . Mutant 1 | . . . . . . . . . . . . . 1 . . . . . . . . . . . . . Best Kill Streak 10 | 1 3 6 5 5 . 4 10 5 4 1 3 . 7 3 5 2 . 3 . 3 1 2 5 7 3 4 Combat Bots Only 7 | . 2 6 4 5 . 4 7 3 4 1 3 . 7 3 4 1 . 3 . 3 . 2 5 5 2 4 Max Kills in Single Turn 5 | 1 1 1 5 3 . 4 3 5 3 1 1 . 4 2 3 1 . 2 . 2 1 1 3 3 2 1 Gunslinging . | . . . . . . . . . . . . . . . . . . . . . . . . . . . Exploded 4 | . 1 . 4 3 . 4 2 3 1 . . . 4 . 3 . . 2 . 2 . 1 3 3 2 . Melee 1 | . . . . . . . . . . . . . . . 1 1 . . . 1 . 1 . 1 . 1 Uniques/NPCs Destroyed . | . . . . . . . . . . . . . . . . . . . . . . . . . . . Combat | -11 -10 -10 -9 -9 -9 -8 -8 -8 -7 -7 -7 -7 -6 -6 -6 -5 -5 -5 -5 -4 -4 -4 -4 -3 -2 -1 -------- Run | Scr Mat Min Mat Min Exi Min Mat Sto Fac Low Low Zio Pro Fac Gar Fac Upp Upp Zhi Pro Fac Upp Upp Res Res Acc Damage Taken 24495 | . 374 369 1261 292 . 71 692 2045 1265 290 307 . 145 41 3364 526 58 287 . 371 75 1662 137 3727 3058 4078 Core 4278 | . 41 73 195 41 . 10 103 207 138 39 96 . 18 . 437 135 . 23 . 18 18 157 19 425 484 1601 Absorbed by Shields 1968 | . . . . . . . . . 259 . . . . . 26 . . . . . 26 613 51 814 179 . Core Remaining (%) 63 | 100 . 54 . . . 38 . 43 . . . . 58 . 48 . . . . 82 . . 83 67 59 . Volleys Fired 738 | 10 34 22 92 34 . 4 55 100 57 13 23 . 22 8 83 8 . 7 . 1 3 55 5 54 46 2 Largest 2 | 2 2 2 2 2 . 2 2 2 2 2 2 . 2 2 2 1 . 1 . 1 1 1 1 2 2 1 Hottest 170 | 40 80 100 85 46 . 46 100 136 138 136 136 . 170 60 170 69 . 43 . 43 43 80 43 146 146 94 Shots Fired 1193 | 20 68 38 182 55 . 5 92 197 108 26 32 . 33 16 119 8 . 7 . 1 3 55 5 59 62 2 Gun 598 | 20 68 32 179 42 . 2 74 58 88 . . . 1 . 3 . . 2 . . 1 . 1 7 20 . Cannon 452 | . . . . . . . . 138 20 26 32 . 20 16 111 8 . . . . . 26 . 18 35 2 Launcher 94 | . . . 3 13 . 3 18 1 . . . . 2 . 5 . . 5 . 1 2 8 4 25 4 . Special 49 | . . 6 . . . . . . . . . . 10 . . . . . . . . 21 . 9 3 . Kinetic 267 | 20 38 . 20 42 . 2 . . 88 . . . 1 . . . . 2 . . 1 26 1 6 20 . Thermal 382 | . . 6 . . . . . 138 14 26 19 . 30 16 71 . . . . . . 14 . 18 30 . Explosive 94 | . . . 3 13 . 3 18 1 . . . . 2 . 5 . . 5 . 1 2 8 4 25 4 . Electromagnetic 431 | . 30 32 159 . . . 74 58 6 . 13 . . . 43 8 . . . . . . . 1 5 2 Robot Hit Streak 25 | 5 13 12 10 7 . 2 12 16 25 15 4 . 12 7 13 12 . 2 . . 1 6 2 19 6 . Robot Miss Streak 6 | 2 3 2 3 2 . 2 4 3 2 1 3 . 3 6 6 1 . 2 . . 1 2 1 1 4 1 Penetration Max 1 | . . . . . . . . . . . . . . . . . . . . . . 1 . . . . Secondary Targets 12 | . . 4 3 2 . . 1 1 1 . . . . . . . . . . . . . . . . . Max Gunslinging Chain 1 | . . 1 1 1 . . 1 1 1 . . . . . . . . . . . . . . . . . Shots Hit Robots 894 | 12 48 21 128 34 . 2 55 137 91 23 20 . 25 7 92 39 . 3 1 6 4 43 4 44 36 19 Core Hits 559 | 2 20 13 54 29 . 12 52 72 37 11 7 . 18 6 59 12 . 8 . 3 5 20 7 66 28 18 Critical Hits 45 | . 2 . . . . . 2 15 5 3 1 . . 1 . . . 1 . . . 6 . . 6 3 Critical Kills 18 | . 1 . . . . . 1 5 1 2 1 . . 1 . . . . . . . 1 . . 2 3 Critical Parts Destroyed 24 | . 1 . . . . . . 10 3 . . . . . . . . 1 . . . 5 . . 4 . Melee Attacks 291 | . . . 2 6 . . 10 9 25 . 3 . 1 . 17 66 3 . 1 24 3 11 3 76 . 31 Impact 26 | . . . 2 6 . . 10 8 . . . . . . . . . . . . . . . . . . Slashing 117 | . . . . . . . . 1 25 . 3 . . . 15 52 3 . 1 17 . . . . . . Piercing 111 | . . . . . . . . . . . . . . . . . . . . . . 9 . 71 . 31 Sneak Attacks 24 | . . . . . . . . . . . . . . . 1 15 . . . . 3 2 1 2 . . Combat Hostiles 9 | . . . . . . . . . . . . . . . 1 4 . . . . 2 . . 2 . . Follow-up Attacks 2 | . . . . . . . . . . . . . . . . . . . . . . . . . . 2 Damage Inflicted 35992 | 106 587 265 2582 1272 . 421 2854 3499 2197 523 521 . 1378 271 4394 2122 . 794 138 445 130 2120 656 4568 3007 1142 Guns 6163 | 106 488 245 1678 451 . 16 973 775 1143 . . . 25 . 23 . . 7 . . 26 . . 141 66 . Cannons 8907 | . . . . . . . . 2328 334 523 475 . 467 271 2081 247 . . . . . 438 . 593 1084 66 Explosions 15514 | . 99 20 904 821 . 405 1881 396 621 . 46 . 786 . 1070 . . 787 . 365 104 695 656 3627 1829 402 Melee 5148 | . . . . . . . . . 99 . . . . . 1220 1875 . . 138 80 . 861 . 207 . 668 Ramming 34 | . . . . . . . . . . . . . . . . . . . . . . . . . 28 6 Kinetic 2803 | 106 227 . 180 451 . 16 . . 1143 . . . 25 . . . . 7 . . 26 438 . 118 66 . Thermal 8934 | . 99 20 481 87 . . 124 2516 884 523 269 . 567 271 1422 . . . . . . 126 . 593 952 . Explosive 13368 | . . . 423 734 . 405 1757 208 . . . . 786 . 1034 . . 787 . 365 62 695 656 3627 1829 . Electromagnetic 5705 | . 261 245 1498 . . . 973 775 71 . 252 . . . 718 247 . . . . 42 . . 23 132 468 Impact . | . . . . . . . . . . . . . . . . . . . . . . . . . . . Slashing 3412 | . . . . . . . . . 99 . . . . . 1220 1875 . . 138 80 . . . . . . Piercing 1736 | . . . . . . . . . . . . . . . . . . . . . . 861 . 207 . 668 Highest Corruption 33 | . 2 2 . . . . . 1 1 3 3 3 . . . 1 1 2 2 3 . 1 2 33 20 13 Average Corruption 2 | . 2 2 . . . . . 1 1 2 3 3 . . . 1 1 1 2 2 . 1 1 12 8 9 Corruption Purged . | . . . . . . . . . . . . . . . . . . . . . . . . . . . Effects 166 | . 2 6 . . . . . 5 9 14 16 1 . . . 4 3 3 5 9 . 4 5 55 14 11 Message Errors 46 | . 1 2 . . . . . 4 6 3 3 . . . . 1 1 1 3 4 . 1 2 10 2 2 Matter Fused 23 | . . . . . . . . . . 3 4 . . . . . . . . 1 . . . 8 3 4 Heat Flow Errors 13 | . . 1 . . . . . . . 1 2 1 . . . . . . . 2 . . 2 4 . . Energy Discharges 20 | . 1 2 . . . . . . 1 1 3 . . . . . 1 . 1 2 . 1 . 6 1 . Parts Rejected 2 | . . . . . . . . . . . . . . . . . . . . . . . . . 2 . Data Loss (minor) 24 | . . . . . . . . 1 1 6 3 . . . . 3 1 1 1 . . 1 1 4 1 . Data Loss (major) 2 | . . . . . . . . . . . . . . . . . . . . . . . . 1 1 . Misfires 1 | . . . . . . . . . . . . . . . . . . . . . . . . . 1 . Misdirections 14 | . . . . . . . . . . . . . . . . . . . . . . . . 10 . 4 Targeting Errors 19 | . . 1 . . . . . . 1 . 1 . . . . . . 1 . . . 1 . 11 2 1 Weapon Failures 2 | . . . . . . . . . . . . . . . . . . . . . . . . 1 1 . Overload Shots 2 | . . . . . . . . . . . . . 2 . . . . . . . . . . . . . Overflow Damage 1781 | . 10 . 19 43 . . 30 27 180 21 48 . 63 5 136 395 . 76 130 86 24 62 . 153 270 3 Projectiles 230 | . . . . . . . . 27 18 21 42 . 30 5 16 3 . . . . . 3 . 4 61 . Explosions 782 | . 10 . 19 43 . . 30 . 162 . 6 . 33 . 6 . . 76 . 48 24 27 . 86 209 3 Melee 769 | . . . . . . . . . . . . . . . 114 392 . . 130 38 . 32 . 63 . . Knockbacks 13 | . . . . . . . . . . . . . . . . . . . . . . 13 . . . . Impact . | . . . . . . . . . . . . . . . . . . . . . . . . . . . Kinetic 11 | . . . . . . . . . . . . . . . . . . . . . . 11 . . . . Secondary 2 | . . . . . . . . . . . . . . . . . . . . . . 2 . . . . Self-Inflicted Damage 677 | . 37 37 . 89 . 31 24 56 . . . . . . . . . 128 . . . 46 . 58 43 128 Shots 15 | . 1 1 . 3 . 1 1 1 . . . . . . . . . 2 . . . 1 . 1 1 2 Rammed 2 | . . . . . . . . . . . . . . . . . . . . . . . . . 1 1 Targets Rammed 2 | . . . . . . . . . . . . . . . . . . . . . . . . . 1 1 Kicked . | . . . . . . . . . . . . . . . . . . . . . . . . . . . Crushed . | . . . . . . . . . . . . . . . . . . . . . . . . . . . Highest Temperature 324 | . 169 231 306 2 . . 183 199 255 192 187 148 81 . 156 176 . 30 . 164 . 28 146 324 125 . Average Temperature 73 | . 45 77 79 2 . . 48 98 98 78 61 75 33 . 70 64 . 14 . 82 . 12 75 81 50 . Received Heat Transfer 3992 | . 192 12 528 36 . 9 261 900 246 48 45 . 63 . 1007 12 12 9 . . 12 133 . 188 54 225 Effects 4 | . . . 1 . . . . . 3 . . . . . . . . . . . . . . . . . Interference 3 | . . . . . . . . . 3 . . . . . . . . . . . . . . . . . Damage (minor) 1 | . . . 1 . . . . . . . . . . . . . . . . . . . . . . . Siege Activations . | . . . . . . . . . . . . . . . . . . . . . . . . . . . Robots Corrupted 12 | . 1 . 1 . . . 3 1 . . 1 . . . 2 1 . . . . . . . . . 2 Combat Hostiles 9 | . 1 . 1 . . . 2 1 . . . . . . 2 . . . . . . . . . . 2 Parts Fried 33 | . 2 . 10 . . . 7 4 . . 1 . . . 4 4 . . . . . . 1 . . . Impact Corruptions . | . . . . . . . . . . . . . . . . . . . . . . . . . . . Robots Melted . | . . . . . . . . . . . . . . . . . . . . . . . . . . . Combat Hostiles . | . . . . . . . . . . . . . . . . . . . . . . . . . . . Parts Melted 24 | . . . 1 . . . . 6 1 3 1 . . 1 5 . . . . . . 1 . 5 . . Heat Transferred 12912 | . 150 50 550 100 . . 100 4130 794 851 420 . 1301 333 1780 . . . . . . 880 . 481 992 . Parts Sabotaged . | . . . . . . . . . . . . . . . . . . . . . . . . . . . Parts Stolen . | . . . . . . . . . . . . . . . . . . . . . . . . . . . Parts Stripped . | . . . . . . . . . . . . . . . . . . . . . . . . . . . Power Chain Reactions 18 | . 3 1 6 . . . 3 3 . . 1 . . . 1 . . . . . . . . . . . Missiles Intercepted . | . . . . . . . . . . . . . . . . . . . . . . . . . . . Alert | -11 -10 -10 -9 -9 -9 -8 -8 -8 -7 -7 -7 -7 -6 -6 -6 -5 -5 -5 -5 -4 -4 -4 -4 -3 -2 -1 ------- Run | Scr Mat Min Mat Min Exi Min Mat Sto Fac Low Low Zio Pro Fac Gar Fac Upp Upp Zhi Pro Fac Upp Upp Res Res Acc Peak Influence 1162 | 5 143 70 474 378 . 241 476 518 601 . . . . 101 1162 649 . . . . 299 . . 477 350 515 Average Influence 297 | 1 52 46 238 200 . 47 214 206 191 . . . . 59 739 474 . . . . 193 . . 208 110 399 Maximum Alert Level 4 | . . . 2 1 . 1 2 2 2 . . . . . 4 2 . . . . 1 . . 2 1 2 Low Security (%) 45 | 100 100 100 41 44 . 99 38 51 65 . . . . 100 11 . . . . . 33 . . 47 81 . Level 1 27 | . . . 52 55 . . 59 37 14 . . . . . 4 32 . . . . 66 . . 44 18 31 Level 2 15 | . . . 6 . . . 2 11 19 . . . . . 16 67 . . . . . . . 8 . 68 Level 3 8 | . . . . . . . . . . . . . . . 55 . . . . . . . . . . . Level 4 2 | . . . . . . . . . . . . . . . 12 . . . . . . . . . . . Level 5 . | . . . . . . . . . . . . . . . . . . . . . . . . . . . High Security . | . . . . . . . . . . . . . . . . . . . . . . . . . . . Max Security . | . . . . . . . . . . . . . . . . . . . . . . . . . . . Squads Dispatched 54 | . 3 . 6 . . . 3 11 8 . 1 . . 4 . 6 . . . . 1 . . 8 2 1 Investigation 17 | . 2 . 4 . . . 2 4 1 . 1 . . 3 . . . . . . . . . . . . Extermination 13 | . . . . . . . . . 3 . . . . 1 . 4 . . . . . . . 3 2 . Reinforcement 14 | . 1 . 2 . . . 1 4 4 . . . . . . . . . . . 1 . . 1 . . Assault 6 | . . . . . . . . 2 . . . . . . . 2 . . . . . . . 1 . 1 Garrison 4 | . . . . . . . . 1 . . . . . . . . . . . . . . . 3 . . Intercept . | . . . . . . . . . . . . . . . . . . . . . . . . . . . Construction Impeded 3 | . . . . . . . . 1 2 . . . . . . . . . . . . . . . . . Haulers Reinforced . | . . . . . . . . . . . . . . . . . . . . . . . . . . . Stealth | -11 -10 -10 -9 -9 -9 -8 -8 -8 -7 -7 -7 -7 -6 -6 -6 -5 -5 -5 -5 -4 -4 -4 -4 -3 -2 -1 --------- Run | Scr Mat Min Mat Min Exi Min Mat Sto Fac Low Low Zio Pro Fac Gar Fac Upp Upp Zhi Pro Fac Upp Upp Res Res Acc Distress Signals 15 | . 1 . 2 . . . 2 2 . . . . . 1 1 1 . . . . 1 . . 1 . 3 Communications Jammed 3 | . . . . . . . . . . . . . . . . . . . . . . . . . 3 . Distress Signals 3 | . . . . . . . . . . . . . . . . . . . . . . . . . 3 . Times Spotted 446 | . 10 12 44 22 . 7 35 58 25 3 10 . 10 6 45 16 . 10 . 9 8 15 6 36 18 41 Peak Tracking Total 16 | . 3 4 4 4 . 4 8 10 4 1 4 . 7 4 6 5 . 4 . 5 5 5 2 7 5 16 Tactical Retreats 41 | . . . 6 1 . . 2 3 3 . 1 . . 1 12 . . . . . . 4 . 4 . 4 Traps | -11 -10 -10 -9 -9 -9 -8 -8 -8 -7 -7 -7 -7 -6 -6 -6 -5 -5 -5 -5 -4 -4 -4 -4 -3 -2 -1 ------- Run | Scr Mat Min Mat Min Exi Min Mat Sto Fac Low Low Zio Pro Fac Gar Fac Upp Upp Zhi Pro Fac Upp Upp Res Res Acc Traps Triggered 23 | . 2 . . . . . 1 2 . . . . . . 10 5 . . . . . . . 1 . 2 Indirectly 1 | . . . . . . . . . . . . . . . . . . . . . . . . . . 1 Trap Hack Attempts 222 | . . . . . . . . . 71 . . . . . 40 27 . . . . 39 . . 45 . . Triggered 1 | . . . . . . . . . . . . . . . . . . . . . 1 . . . . . Disarmed 3 | . . . . . . . . . 1 . . . . . 2 . . . . . . . . . . . Reprogrammed 35 | . . . . . . . . 4 5 . . . . 6 3 5 . . . . 5 . . 7 . . Reused 28 | . . . . . . . . . . . 4 . . 2 11 . . . . . . . . 2 6 3 Traps Extracted 31 | . . . . . . . . . 5 . . . . . 3 5 . . . . 10 1 . 6 1 . Installed 43 | . . . . . . . . . . . 5 . . 4 11 1 . . . . 8 . . 2 8 4 Triggered 30 | . . . 1 . . . . . . . 4 . . 2 11 . . 1 . . . . . 2 6 3 Exploded 2 | . . . . . 2 . . . . . . . . . . . . . . . . . . . . . Machines | -11 -10 -10 -9 -9 -9 -8 -8 -8 -7 -7 -7 -7 -6 -6 -6 -5 -5 -5 -5 -4 -4 -4 -4 -3 -2 -1 ---------- Run | Scr Mat Min Mat Min Exi Min Mat Sto Fac Low Low Zio Pro Fac Gar Fac Upp Upp Zhi Pro Fac Upp Upp Res Res Acc Machines Disabled 43 | . 1 . 1 6 . 1 1 . 8 . . . 2 . 5 11 . 1 . . 2 . . 2 1 1 Max in Single Turn 8 | . 1 . 1 2 . . 1 . 8 . . . 2 . 1 1 . 1 . . 2 . . 1 1 1 Garrison Access 5 | . . . . . . . . 1 1 . . . . . . 1 . . . . . . . 1 . 1 Garrison Relay 4 | . . . . . . . . . . . . . . . 4 . . . . . . . . . . . Machines Sabotaged . | . . . . . . . . . . . . . . . . . . . . . . . . . . . Garrisons Compromised . | . . . . . . . . . . . . . . . . . . . . . . . . . . . Overloaded Fab Kills . | . . . . . . . . . . . . . . . . . . . . . . . . . . . Fab Network Shutdowns 1 | . . . . . . . . . 1 . . . . . . . . . . . . . . . . . Hacking | -11 -10 -10 -9 -9 -9 -8 -8 -8 -7 -7 -7 -7 -6 -6 -6 -5 -5 -5 -5 -4 -4 -4 -4 -3 -2 -1 --------- Run | Scr Mat Min Mat Min Exi Min Mat Sto Fac Low Low Zio Pro Fac Gar Fac Upp Upp Zhi Pro Fac Upp Upp Res Res Acc Machines Accessed 95 | . 4 . 9 . 2 1 6 18 19 1 2 1 . 7 . 10 . . 4 . 1 1 . 7 . 2 Terminals 46 | . 4 . 4 . . 1 3 13 10 . 1 . . 3 . 2 . . . . . 1 . 3 . 1 Fabricators 4 | . . . . . . . . . 3 . . . . . . 1 . . . . . . . . . . Repair Stations 11 | . . . 2 . . . 1 2 2 . . . . 1 . 1 . . . . . . . 2 . . Recycling Units 15 | . . . 2 . . . 1 2 2 . . . . 1 . 4 . . . . 1 . . 1 . 1 Scanalyzers 5 | . . . 1 . . . 1 . 1 . . . . 1 . 1 . . . . . . . . . . Garrison Access 5 | . . . . . . . . 1 1 . . . . 1 . 1 . . . . . . . 1 . . Total Hacks 266 | . 9 . 32 . 2 2 22 58 55 1 3 4 . 20 . 19 . . 17 . 2 4 . 13 . 3 Successful 154 | . 3 . 19 . 2 2 10 36 27 1 2 4 . 13 . 11 . . 17 . 1 1 . 4 . 1 Failed 111 | . 5 . 13 . . . 12 22 28 . 1 . . 7 . 8 . . . . 1 3 . 9 . 2 Catastrophic 21 | . 1 . . . . . 3 4 1 . 1 . . 4 . 2 . . . . 1 . . 2 . 2 Database Lockouts 1 | . 1 . . . . . . . . . . . . . . . . . . . . . . . . . Manual 99 | . 8 . 15 . 1 2 14 21 15 . 2 . . 4 . 7 . . . . . 3 . 6 . 1 Terminals 136 | . 9 . 14 . . 2 12 41 34 . 2 . . 7 . 5 . . . . . 4 . 5 . 1 Fabricators 10 | . . . . . . . . . 8 . . . . . . 2 . . . . . . . . . . Repair Stations 34 | . . . 9 . . . 3 9 5 . . . . 2 . 2 . . . . . . . 4 . . Recycling Units 32 | . . . 5 . . . 3 6 4 . . . . 3 . 5 . . . . 2 . . 2 . 2 Scanalyzers 17 | . . . 4 . . . 4 . 1 . . . . 5 . 3 . . . . . . . . . . Garrison Access 12 | . . . . . . . . 2 3 . . . . 3 . 2 . . . . . . . 2 . . Terminal Hacks 69 | . 1 . 4 . 2 2 2 17 12 1 2 4 . 2 . 2 . . 17 . . 1 . . . . Record 7 | . . . . . 1 . . . . . . . . . . . . . 5 . . 1 . . . . Part Schematic 9 | . . . 1 . . . . . . . . 4 . . . . . . 4 . . . . . . . Robot Schematic 6 | . . . . . . 1 . 3 1 . 1 . . . . . . . . . . . . . . . Robot Analysis 8 | . 1 . 1 . . 1 . . 1 . . . . . . . . . 4 . . . . . . . Prototype ID Bank 6 | . . . 1 . . . . 1 . . . . . . . . . . 4 . . . . . . . Open Door 6 | . . . . . . . . 4 . 1 1 . . . . . . . . . . . . . . . Level Access Points 1 | . . . . . . . . . 1 . . . . . . . . . . . . . . . . . Branch Access Points 2 | . . . . . . . . . 1 . . . . . . 1 . . . . . . . . . . Emergency Access Points 2 | . . . . . . . . . 2 . . . . . . . . . . . . . . . . . Machine Index 1 | . . . . . . . . . 1 . . . . . . . . . . . . . . . . . Garrison Index 2 | . . . . . . . . . 1 . . . . 1 . . . . . . . . . . . . Alert Level 1 | . . . . . . . . 1 . . . . . . . . . . . . . . . . . . Unreport Threat 10 | . . . 1 . . . 2 5 1 . . . . . . 1 . . . . . . . . . . Locate Traps 2 | . . . . . . . . 1 1 . . . . . . . . . . . . . . . . . Reprogram Traps 2 | . . . . . . . . 1 . . . . . 1 . . . . . . . . . . . . Recall Extermination 1 | . . . . . . . . . 1 . . . . . . . . . . . . . . . . . Recall Reinforcements 1 | . . . . . . . . . 1 . . . . . . . . . . . . . . . . . Zone Layout 1 | . . . . . . . . 1 . . . . . . . . . . . . . . . . . . EX-Prototype ID Bank 1 | . . . . . 1 . . . . . . . . . . . . . . . . . . . . . Fabricator Hacks 5 | . . . . . . . . . 5 . . . . . . . . . . . . . . . . . Load Schematic 2 | . . . . . . . . . 2 . . . . . . . . . . . . . . . . . Build 3 | . . . . . . . . . 3 . . . . . . . . . . . . . . . . . Repair Station Hacks 25 | . . . 7 . . . 2 8 2 . . . . 2 . 2 . . . . . . . 2 . . Scan Component 13 | . . . 4 . . . 1 4 1 . . . . 1 . 1 . . . . . . . 1 . . Repair 12 | . . . 3 . . . 1 4 1 . . . . 1 . 1 . . . . . . . 1 . . Recycling Unit Hacks 13 | . . . 1 . . . 1 2 2 . . . . 3 . 2 . . . . 1 . . . . 1 Process 1 | . . . . . . . . . . . . . . 1 . . . . . . . . . . . . Report Inventory 1 | . . . . . . . . . . . . . . 1 . . . . . . . . . . . . Retrieve Matter 1 | . . . . . . . . . . . . . . 1 . . . . . . . . . . . . Retrieve Components 10 | . . . 1 . . . 1 2 2 . . . . . . 2 . . . . 1 . . . . 1 Scanalyzer 15 | . . . 4 . . . 4 . . . . . . 5 . 2 . . . . . . . . . . Insert Component 7 | . . . 2 . . . 2 . . . . . . 2 . 1 . . . . . . . . . . Analyze 8 | . . . 2 . . . 2 . . . . . . 3 . 1 . . . . . . . . . . Garrison Access Hacks 5 | . . . . . . . . 1 1 . . . . 1 . 1 . . . . . . . 1 . . Unlock Access 1 | . . . . . . . . . . . . . . 1 . . . . . . . . . . . . Seal Access 3 | . . . . . . . . 1 1 . . . . . . . . . . . . . . 1 . . Coupler Status 1 | . . . . . . . . . . . . . . . . 1 . . . . . . . . . . Unauthorized Hacks 22 | . 2 . 3 . . . 1 8 5 . . . . . . 2 . . . . . . . 1 . . Terminals 16 | . 2 . 1 . . . 1 6 4 . . . . . . 1 . . . . . . . 1 . . Track 1 | . . . . . . . . 1 . . . . . . . . . . . . . . . . . . Assimilate 4 | . . . 1 . . . . 1 1 . . . . . . . . . . . . . . 1 . . Botnet 7 | . 1 . . . . . 1 2 2 . . . . . . 1 . . . . . . . . . . Disrupt 3 | . 1 . . . . . . 1 1 . . . . . . . . . . . . . . . . . Operators 1 | . . . . . . . . 1 . . . . . . . . . . . . . . . . . . Fabricators 1 | . . . . . . . . . 1 . . . . . . . . . . . . . . . . . Haulers 1 | . . . . . . . . . 1 . . . . . . . . . . . . . . . . . Repair Stations . | . . . . . . . . . . . . . . . . . . . . . . . . . . . Recycling Units 4 | . . . 2 . . . . 2 . . . . . . . . . . . . . . . . . . Mask 2 | . . . . . . . . 2 . . . . . . . . . . . . . . . . . . Tunnel 2 | . . . 2 . . . . . . . . . . . . . . . . . . . . . . . Scanalyzers . | . . . . . . . . . . . . . . . . . . . . . . . . . . . Garrison Access 1 | . . . . . . . . . . . . . . . . 1 . . . . . . . . . . Restock 1 | . . . . . . . . . . . . . . . . 1 . . . . . . . . . . Data Cores Recovered . | . . . . . . . . . . . . . . . . . . . . . . . . . . . Used . | . . . . . . . . . . . . . . . . . . . . . . . . . . . Hacking Detections 74 | . 4 . 7 . . 1 6 13 18 . 1 . . 6 . 8 . . . . 1 1 . 6 . 2 Full Trace Events 13 | . 1 . 1 . . . 1 4 1 . 1 . . 3 . . . . . . . 1 . . . . Feedback Events 1 | . . . . . . . . . 1 . . . . . . . . . . . . . . . . . Corruption 1 | . . . . . . . . . 1 . . . . . . . . . . . . . . . . . Feedback Blocked . | . . . . . . . . . . . . . . . . . . . . . . . . . . . Robot Schematics Acquired 6 | . . . . . . 1 . 3 1 . 1 . . . . . . . . . . . . . . . Robots Built . | . . . . . . . . . . . . . . . . . . . . . . . . . . . Matter . | . . . . . . . . . . . . . . . . . . . . . . . . . . . Time . | . . . . . . . . . . . . . . . . . . . . . . . . . . . Total Robot Build Rating . | . . . . . . . . . . . . . . . . . . . . . . . . . . . Part Schematics Acquired 15 | . . . 3 . . . 2 . . . . 4 . 1 . 1 . . 4 . . . . . . . Parts Built 6 | . . . . . . . . . 6 . . . . . . . . . . . . . . . . . Matter 416 | . . . . . . . . . 416 . . . . . . . . . . . . . . . . . Time 103 | . . . . . . . . . 103 . . . . . . . . . . . . . . . . . Total Part Build Rating 16 | . . . . . . . . . 16 . . . . . . . . . . . . . . . . . Parts Repaired 12 | . . . 3 . . . 1 4 1 . . . . 1 . 1 . . . . . . . 1 . . Time 404 | . . . 78 . . . 26 153 19 . . . . 22 . 26 . . . . . . . 80 . . Parts Recycled . | . . . . . . . . . . . . . . . . . . . . . . . . . . . Recycled Matter 10 | . . . . . . . . . . . . . . 10 . . . . . . . . . . . . Retrieved Matter 10 | . . . . . . . . . . . . . . 10 . . . . . . . . . . . . Retrieved Components 63 | . . . 2 . . . 10 8 11 . . . . . . 20 . . . . 2 . . . . 10 Parts Scanalyzed 7 | . . . 2 . . . 2 . . . . . . 2 . 1 . . . . . . . . . . Part Schematics Acquired 6 | . . . 2 . . . 2 . . . . . . 1 . 1 . . . . . . . . . . Parts Damaged 1 | . . . . . . . . . . . . . . 1 . . . . . . . . . . . . Bothacking | -11 -10 -10 -9 -9 -9 -8 -8 -8 -7 -7 -7 -7 -6 -6 -6 -5 -5 -5 -5 -4 -4 -4 -4 -3 -2 -1 ------------ Run | Scr Mat Min Mat Min Exi Min Mat Sto Fac Low Low Zio Pro Fac Gar Fac Upp Upp Zhi Pro Fac Upp Upp Res Res Acc Used RIF Installer 1 | . . . . . . . . . . . . . . . 1 . . . . . . . . . . . Robots Hacked 30 | . . . . . . . . . . . . . . . 1 12 . . . 4 1 3 2 6 1 . Non-combat 9 | . . . . . . . . . . . . . . . . 4 . . . . 1 . . 3 1 . Combat 21 | . . . . . . . . . . . . . . . 1 8 . . . 4 . 3 2 3 . . Robot Hacks Applied 35 | . . . . . . . . . . . . . . . 2 12 . . . 4 1 4 3 8 1 . parse_system 2 | . . . . . . . . . . . . . . . 1 . . . . . . . 1 . . . no_distress 2 | . . . . . . . . . . . . . . . . . . . . . 1 . . 1 . . ignore_parts 4 | . . . . . . . . . . . . . . . . 4 . . . . . . . . . . purge_threat 2 | . . . . . . . . . . . . . . . . . . . . . . . . 2 . . spike_heat 1 | . . . . . . . . . . . . . . . . . . . . . . 1 . . . . reboot_system 2 | . . . . . . . . . . . . . . . . 1 . . . . . . . 1 . . overwrite_iff 4 | . . . . . . . . . . . . . . . . . . . . 1 . 2 . 1 . . streamctrl_low 1 | . . . . . . . . . . . . . . . . . . . . . . . . 1 . . streamctrl_high 2 | . . . . . . . . . . . . . . . . . . . . . . . 2 . . . formatsys_low 2 | . . . . . . . . . . . . . . . . . . . . . . . . 1 1 . formatsys_high 13 | . . . . . . . . . . . . . . . 1 7 . . . 3 . 1 . 1 . . Relay Couplers Released 19 | . . . . . . . . . . . . . . . 14 2 . 3 . . . . . . . . Machine Destruction 16 | . . . . . . . . . . . . . . . 14 2 . . . . . . . . . . Programmers 3 | . . . . . . . . . . . . . . . . . . 3 . . . . . . . . Attached 11 | . . . . . . . . . . . . . . . 2 3 . 1 . 1 . 1 . 2 1 . Robots Rewired 4 | . . . . . . . . . . . . . 1 . 2 . . . . . 1 . . . . . Allies Hacked 5 | . . . . . . . . . . . . . . . . 2 . . . . 2 . . 1 . . Hacks Repelled . | . . . . . . . . . . . . . . . . . . . . . . . . . . . Allies | -11 -10 -10 -9 -9 -9 -8 -8 -8 -7 -7 -7 -7 -6 -6 -6 -5 -5 -5 -5 -4 -4 -4 -4 -3 -2 -1 -------- Run | Scr Mat Min Mat Min Exi Min Mat Sto Fac Low Low Zio Pro Fac Gar Fac Upp Upp Zhi Pro Fac Upp Upp Res Res Acc Total Allies 52 | . . . 1 4 . . . 12 1 . . 4 1 . 3 8 . . . 4 3 3 2 5 1 . Largest Group 10 | . . . 1 3 3 3 . 10 3 1 1 4 4 1 3 3 3 2 1 2 4 3 2 3 1 . Highest-Rated Group 243 | . . . 10 40 40 40 . 173 61 26 26 96 96 19 101 243 232 174 99 108 206 140 108 152 32 . Highest-Rated Ally 99 | . . . 10 31 16 16 . 31 29 26 26 31 31 19 41 99 99 99 99 99 54 54 54 90 32 . Total Orders 37 | . . . . . . . . . 11 2 4 . . 2 2 2 2 2 . . . . 1 8 1 . STAY 12 | . . . . . . . . . 3 1 2 . . 1 1 1 . . . . . . . 3 . . GOTO 4 | . . . . . . . . . 3 . . . . . . . . . . . . . . 1 . . FOLLOW 15 | . . . . . . . . . 5 1 2 . . 1 1 1 . . . . . . . 4 . . AID 1 | . . . . . . . . . . . . . . . . . . . . . . . . . 1 . EXPLORE 5 | . . . . . . . . . . . . . . . . . 2 2 . . . . 1 . . . Ally Attacks 310 | . . . . 16 . 20 . 86 10 . . . 15 . 7 47 14 16 . 15 20 9 5 30 . . Total Damage 8520 | . . . . 207 . 244 . 1168 142 . . . 226 . 260 1814 426 788 . 589 710 710 174 1062 . . Kills 71 | . . . . 4 . 2 . 16 . . . . 4 . 2 14 6 5 . 3 6 1 1 7 . . Allies Corrupted 2 | . . . . . . . . . . . . . . . . 1 . . . . . . . 1 . . Allies Melted . | . . . . . . . . . . . . . . . . . . . . . . . . . . . Intel | -11 -10 -10 -9 -9 -9 -8 -8 -8 -7 -7 -7 -7 -6 -6 -6 -5 -5 -5 -5 -4 -4 -4 -4 -3 -2 -1 ------- Run | Scr Mat Min Mat Min Exi Min Mat Sto Fac Low Low Zio Pro Fac Gar Fac Upp Upp Zhi Pro Fac Upp Upp Res Res Acc Robot Analysis Total 8 | . 1 . 1 . . 1 . . 1 . . . . . . . . . 4 . . . . . . . Derelict Logs Recovered 15 | . . 2 . 1 . . . . . 1 . . 2 . . . 2 2 . 1 . 2 2 . . . Drone Launches 10 | . . . . . . . . . . . . . . . . 5 . . . . . 2 3 . . . Drone Recoveries . | . . . . . . . . . . . . . . . . . . . . . . . . . . . Exploration | -11 -10 -10 -9 -9 -9 -8 -8 -8 -7 -7 -7 -7 -6 -6 -6 -5 -5 -5 -5 -4 -4 -4 -4 -3 -2 -1 ------------- Run | Scr Mat Min Mat Min Exi Min Mat Sto Fac Low Low Zio Pro Fac Gar Fac Upp Upp Zhi Pro Fac Upp Upp Res Res Acc Turns Passed 30542 | 111 549 603 1690 1313 363 550 1339 2401 3076 683 923 1289 948 782 3392 1973 606 905 456 594 525 1676 931 1631 895 338 Spaces Moved 15481 | 59 388 391 796 786 275 392 613 920 1439 415 577 881 547 411 1301 912 364 541 162 313 238 818 630 732 355 225 Core 162 | 1 . . . . . . . . . . . . . . . . . . . . . . . . . 161 Treads 3584 | . . . 1 . . . 527 817 1051 . . . . . 1077 26 . . . . . . . 11 10 64 Legs . | . . . . . . . . . . . . . . . . . . . . . . . . . . . Wheels 11735 | 58 388 391 795 786 275 392 86 103 388 415 577 881 547 411 224 886 364 541 162 313 238 818 630 721 345 . Hover . | . . . . . . . . . . . . . . . . . . . . . . . . . . . Flight . | . . . . . . . . . . . . . . . . . . . . . . . . . . . Fastest Speed 50 | 50 100 120 130 130 130 130 110 180 130 140 140 140 150 150 150 150 160 160 160 160 160 140 140 140 150 50 Average Speed 155 | 99 105 120 147 147 130 130 170 181 170 140 140 142 150 150 186 159 160 160 160 160 169 166 140 152 169 94 Slowest Speed 1200 | 100 120 120 180 190 130 130 180 205 200 140 140 150 150 150 203 200 160 160 160 160 170 170 140 210 310 1200 Overloaded Moves . | . . . . . . . . . . . . . . . . . . . . . . . . . . . Propulsion Burnouts . | . . . . . . . . . . . . . . . . . . . . . . . . . . . Robots Hopped 1 | . . . . . . . . . . 1 . . . . . . . . . . . . . . . . Cave-ins Triggered 4 | . . . . . . . . . . . . . . . . . . . . . . . . 4 . . Teleports 1 | . . . . . . . . . . . . . . . . . . . . . . . . . 1 . Exploration Rate (%) 54 | 6 56 60 66 98 69 76 52 91 37 60 66 77 63 11 76 22 97 75 60 43 5 72 98 20 9 5 Regions Visited 26 Branch Regions 15 Pre-discovered Areas 9 | . . . 2 . 1 . . . . . . 3 . . . . . . 3 . . . . . . . Known Exits Taken 10 | . . . . . . 1 . 1 1 1 1 1 1 1 . 1 . . . . . . . 1 . . Unknown Exits Taken 15 | 1 1 1 1 1 1 . 1 . . . . . . . . . 1 1 1 1 1 1 1 . 1 . Scrap Searched 23 | . . 3 . 1 . 1 . . . 2 2 . 1 . . . 4 1 . 1 . 3 4 . . . Spaces Dug 201 | . . 6 1 . . . 2 6 22 . 3 . . . 2 5 3 . . 32 . . 17 93 . 9 Terrain Destroyed 1107 | . 12 12 45 118 . 29 102 27 53 . 4 . 18 3 65 5 3 78 . 32 13 78 46 208 138 18 Melee 125 | . . . 1 . . . 2 6 22 . 3 . . . 2 5 3 . . 13 . . . 59 . 9 Projectile 28 | . . 6 . . . . . . . . 1 . 3 3 1 . . . . . . 6 . 2 6 . AOE 954 | . 12 6 44 118 . 29 100 21 31 . . . 15 . 62 . . 78 . 19 13 72 46 147 132 9 Actions | -11 -10 -10 -9 -9 -9 -8 -8 -8 -7 -7 -7 -7 -6 -6 -6 -5 -5 -5 -5 -4 -4 -4 -4 -3 -2 -1 --------- Run | Scr Mat Min Mat Min Exi Min Mat Sto Fac Low Low Zio Pro Fac Gar Fac Upp Upp Zhi Pro Fac Upp Upp Res Res Acc Total 20309 | 92 467 473 1129 874 280 426 793 1446 1909 489 655 913 631 561 2134 1342 383 575 358 374 358 1051 671 1039 595 291 Wait 2553 | 13 23 50 147 32 3 20 66 337 240 46 31 15 36 124 540 217 8 16 173 28 38 132 29 51 131 7 Move 15450 | 58 387 390 795 785 274 391 612 919 1438 412 576 880 546 411 1300 911 363 540 161 312 237 817 629 727 354 225 Hop 1 | . . . . . . . . . . 1 . . . . . . . . . . . . . . . . Pick Up 247 | 4 9 2 31 3 1 3 10 23 16 3 5 11 5 6 29 27 3 3 7 . 4 11 . 15 11 5 Fast Attach 83 | 7 2 . 9 2 . . 3 9 7 . . 1 . 1 7 9 . 2 2 . 2 3 1 8 5 3 Attach 106 | . . 1 14 . . . 6 11 2 1 . . 4 1 18 6 1 2 1 1 3 5 . 12 10 7 Detach 43 | . 2 . 5 . . . 2 4 1 1 . . 1 . 11 2 . 2 . . 2 2 . 4 3 1 Swap 231 | . 4 6 17 10 1 5 20 15 27 6 7 2 9 2 17 16 3 . 5 5 6 8 2 28 7 3 Drop 223 | . 6 2 17 2 1 3 9 19 25 3 5 4 5 4 24 26 2 3 8 . 12 6 1 12 19 5 Fire 738 | 10 34 22 92 34 . 4 55 100 57 13 23 . 22 8 83 8 . 7 . 1 3 55 5 54 46 2 Melee 288 | . . . 2 6 . . 10 9 25 . 3 . 1 . 17 66 3 . 1 24 3 11 3 76 . 28 Ram 1 | . . . . . . . . . . . . . . . . . . . . . . . . . . 1 Kick . | . . . . . . . . . . . . . . . . . . . . . . . . . . . Crush 1 | . . . . . . . . . . . . . . . . . . . . . . . . . 1 . Escape Stasis 36 | . . . . . . . . . . . . . . . 16 16 . . . . . . . 4 . . Rewire 39 | . . . . . . . . . . 3 . . 2 . 21 8 . . . 3 1 . . 1 . . Trap 265 | . . . . . . . . . 71 . 5 . . 4 51 28 . . . . 47 . . 47 8 4 Miscellaneous 4 | . . . . . . . . . . . . . . . . 2 . . . . . 1 1 . . . Route ------- -11/Scrapyard -10/Materials (discovered 2 exits: *Mat / [*Min]) -10/Mines (discovered 2 exits: *Mat x2) -9/Materials (discovered 2 exits: *Mat / [*Min]) -9/Mines (discovered 3 exits: *Mat x2 / *Exi) -9/Exiles -8/Mines -8/Materials (discovered 3 exits: *Fac x2 / *Sto) -8/Storage -7/Factory (discovered 6 exits: Fac x4 / *Low x2) -7/Lower Caves -7/Lower Caves (discovered 2 exits: *Fac / *Zio) -7/Zion -6/Proximity Caves -6/Factory -6/Garrison (discovered 2 exits: *Fac x2) -5/Factory (discovered 4 exits: *Upp x2 / Ext x2) -5/Upper Caves -5/Upper Caves -5/Zhirov -4/Proximity Caves -4/Factory -4/Upper Caves -4/Upper Caves (discovered 2 exits: *Res / [*War]) -3/Research (discovered 2 exits: *Res / [*Arm]) -2/Research -1/Access History --------- Turn | Location | Event 42 | -11/Scrapyard | Discovered new exit (range 15) 112 | -11/Scrapyard | Entered Materials 317 | -10/Materials | Build established: Mutant 357 | -10/Materials | Discovered new exit (range 13) 421 | -10/Materials | Discovered new exit (range 16) 521 | -10/Materials | Central database locked down 661 | -10/Materials | Entered Mines 679 | -10/Mines | Discovered new exit (range 8) 684 | -10/Mines | Learned 2 Materials zone layouts 703 | -10/Mines | Met a Derelict bent on vengeance 761 | -10/Mines | Discovered new exit (range 6) 884 | -10/Mines | Learned Materials trap positions 937 | -10/Mines | Assembled infested the area 942 | -10/Mines | Assisted by a Guerilla fighting off Assembled 1264 | -10/Mines | Entered Materials 1264 | -9/Materials | Evolved 2 slots: Utility x2 1265 | -9/Materials | Identified exit to Materials 1266 | -9/Materials | Loaded intel: 26 trap records 1444 | -9/Materials | Discovered new exit (range 15) 1549 | -9/Materials | Build established: Hauler-Mutant 2142 | -9/Materials | Lost 3 parts (3w) 2487 | -9/Materials | Repaired Hcp. Storage Unit 2521 | -9/Materials | Repaired Lgt. Armor Plating 2549 | -9/Materials | Repaired Lrg. Storage Unit 2954 | -9/Materials | Entered Mines 3016 | -9/Mines | Received a Rocket Launcher from a helpful Derelict 3077 | -9/Mines | Excavation squad dispatched 3077 | -9/Mines | A large section of the Mines collapsed 3155 | -9/Mines | Received a Mining Laser from a helpful Derelict 3184 | -9/Mines | Discovered exit to Materials (range 16) 3267 | -9/Mines | Learned 4 Materials zone layouts 3374 | -9/Mines | Core integrity fell below 50% 3795 | -9/Mines | Discovered exit to Materials (range 14) 3897 | -9/Mines | Assisted by bots powering up and referring to "LRC-V3" 4257 | -9/Mines | Deemed a non-threat by the Exiles lab entrance 4259 | -9/Mines | Discovered new exit (range 5) 4267 | -9/Mines | Entered Exiles 4267 | -9/Exiles | Accompanied by 3 allies 4303 | -9/Exiles | Met 8R-AWN 4321 | -9/Exiles | Met EX-HEX 4379 | -9/Exiles | Met EX-DEC 4401 | -9/Exiles | Learned location of Zion (-7) 4434 | -9/Exiles | Met EX-BIN 4449 | -9/Exiles | Aligned with FarCom system 4451 | -9/Exiles | Given EX-Vault access code 4483 | -9/Exiles | Opened EX-Vault 4494 | -9/Exiles | Found Gui. Plasma Cannon 4523 | -9/Exiles | Warned to stay clear of 0b10 Research branches 4539 | -9/Exiles | Exiles lab attacked by MAIN.C 4615 | -9/Exiles | Discovered new exit (range 10) 4630 | -9/Exiles | Left Exiles lab with Gui. Plasma Cannon 4630 | -9/Exiles | Entered Mines 4630 | -8/Mines | Accompanied by 3 allies 5077 | -8/Mines | Discovered exit to Materials (range 4) 5180 | -8/Mines | Entered Materials 5180 | -8/Materials | Evolved 2 slots: Propulsion x1, Utility x1 5181 | -8/Materials | Identified exit to Factory 5306 | -8/Materials | Repaired Hcp. Storage Unit 5414 | -8/Materials | Destroyed 7 combat bots 5477 | -8/Materials | Discovered exit to Factory (range 16) 6079 | -8/Materials | Discovered new exit (range 6) 6519 | -8/Materials | Entered Storage 7119 | -8/Storage | Garrison activated, responded to threat 7151 | -8/Storage | Met a pair of Derelict thieves 7280 | -8/Storage | Lost 6 parts (2n1u3w) 7795 | -8/Storage | Discovered exit to Factory (range 15) 7842 | -8/Storage | Core integrity fell below 50% 8145 | -8/Storage | Repaired Arm. Treads 8206 | -8/Storage | Repaired Adv. Beam Cannon 8239 | -8/Storage | Repaired Disposable Heat Sink 8334 | -8/Storage | Assisted by bots powering up and referring to "LRC-V3" 8577 | -8/Storage | Repaired Hrd. Light Armor Plating 8617 | -8/Storage | Build established: Commander-Mutant 8920 | -8/Storage | Entered Factory 8920 | -7/Factory | Accompanied by 3 allies 8920 | -7/Factory | Evolved 2 slots: Utility x2 9072 | -7/Factory | Build established: Hauler-Mutant 9962 | -7/Factory | Fabricated Trap Extractor (x2) 10427 | -7/Factory | Identified exit to Factory 10713 | -7/Factory | Fabricated Arm. Treads? 10779 | -7/Factory | Fabricated Arm. Treads? 10939 | -7/Factory | Local fabrication network quarantined 11258 | -7/Factory | Repaired Arm. Treads 11345 | -7/Factory | Build established: Hacker-Mutant 11418 | -7/Factory | Identified exit to Lower Caves 11757 | -7/Factory | Build established: Hauler-Mutant 11996 | -7/Factory | Entered Lower Caves 11996 | -7/Lower Caves | Accompanied by 1 ally 12057 | -7/Lower Caves | P-60 Hacker assimilated allied 48-0J8(k) 12121 | -7/Lower Caves | Learned 4 Factory zone layouts 12318 | -7/Lower Caves | Attracted the attention of an 0b10 checkpoint 12520 | -7/Lower Caves | Found Prototype Device 12599 | -7/Lower Caves | Discovered new exit (range 14) 12623 | -7/Lower Caves | Identified exit to Lower Caves 12679 | -7/Lower Caves | Entered another Lower Caves area 12679 | -7/Lower Caves | Accompanied by 1 ally 12750 | -7/Lower Caves | Discovered exit to Factory (range 6) 12817 | -7/Lower Caves | Encountered a Warlord checkpoint 13294 | -7/Lower Caves | Discovered new exit (range 6) 13365 | -7/Lower Caves | Identified exit to Zion 13453 | -7/Lower Caves | Build established: Trapper-Mutant 13602 | -7/Lower Caves | Entered Zion 13625 | -7/Zion | Acquired unknown access codes intercepted by a Zionite 13649 | -7/Zion | Discovered new exit (range 16) 13689 | -7/Zion | System corruption cleaned by Quarantine Array 13815 | -7/Zion | Learned location of Testing (-3) 13868 | -7/Zion | Learned location of Quarantine (-2) 14025 | -7/Zion | Gained Derelict followers 14494 | -7/Zion | Found Relay Coupler [Programmer] 14497 | -7/Zion | Found Relay Coupler [Programmer] 14499 | -7/Zion | Found Relay Coupler [Programmer] 14507 | -7/Zion | Found Relay Coupler [Programmer] 14510 | -7/Zion | Found Relay Coupler [Programmer] 14537 | -7/Zion | Identified exit to Proximity Caves 14791 | -7/Zion | Build established: Hauler-Mutant 14891 | -7/Zion | Entered Proximity Caves 14891 | -6/Proximity Caves | Accompanied by 4 allies 15287 | -6/Proximity Caves | Attracted the attention of an 0b10 base 15321 | -6/Proximity Caves | Destroyed 7 combat bots 15476 | -6/Proximity Caves | Discovered exit to Factory (range 10) 15511 | -6/Proximity Caves | Learned Factory stockpile data 15677 | -6/Proximity Caves | Identified Heart of Steel 15839 | -6/Proximity Caves | Entered Factory 15839 | -6/Factory | Accompanied by 1 ally 15839 | -6/Factory | Evolved 2 slots: Utility x2 16224 | -6/Factory | Build established: Trapper-Mutant 16329 | -6/Factory | Repaired Imp. Medium Armor Plating 16621 | -6/Factory | Identified exit to Garrison 16621 | -6/Factory | Entered Garrison 16687 | -6/Garrison | Spotted B-75 Beast 16691 | -6/Garrison | Triggered checkpoint 16936 | -6/Garrison | Lost 3 parts (3u) 16958 | -6/Garrison | Build established: Hauler-Mutant 17062 | -6/Garrison | Triggered checkpoint 17062 | -6/Garrison | Triggered checkpoint 17246 | -6/Garrison | Triggered checkpoint 17250 | -6/Garrison | Lost 3 parts (1n2w) 17337 | -6/Garrison | Discovered new exit (range 14) 17526 | -6/Garrison | Discovered new exit (range 14) 17575 | -6/Garrison | Installed Relay Interface Framework 17914 | -6/Garrison | Triggered checkpoint 18000 | -6/Garrison | Core integrity fell below 50% 18810 | -6/Garrison | Triggered checkpoint 18959 | -6/Garrison | Garrison Relay disabled 19229 | -6/Garrison | Garrison Relay disabled 19286 | -6/Garrison | Build established: Bothacker-Mutant 19448 | -6/Garrison | Allies destroyed B-75 Beast 19516 | -6/Garrison | Triggered checkpoint 19583 | -6/Garrison | Garrison Relay disabled 19758 | -6/Garrison | Triggered checkpoint 19797 | -6/Garrison | Garrison Relay disabled 20013 | -6/Garrison | Entered Factory 20013 | -5/Factory | Accompanied by 3 allies 20013 | -5/Factory | Evolved 2 slots: Utility x2 20014 | -5/Factory | Identified exit to Extension 20414 | -5/Factory | P-70 Sage assimilated allied Slayer 5a 20678 | -5/Factory | Repaired Hcp. Storage Unit 21395 | -5/Factory | Identified exit to Upper Caves 21813 | -5/Factory | First assault squad dispatched 21921 | -5/Factory | Heart of Steel transformed into Warbot 21986 | -5/Factory | Entered Upper Caves 21986 | -5/Upper Caves | Accompanied by 8 allies 22083 | -5/Upper Caves | Discovered new exit (range 115) 22172 | -5/Upper Caves | Encountered a Warlord checkpoint 22281 | -5/Upper Caves | Learned Factory security intel 22592 | -5/Upper Caves | Entered another Upper Caves area 22592 | -5/Upper Caves | Accompanied by 4 allies 22626 | -5/Upper Caves | Attracted the attention of an 0b10 checkpoint 22793 | -5/Upper Caves | Encountered a Warlord checkpoint 22806 | -5/Upper Caves | Learned Factory trap positions 22830 | -5/Upper Caves | Learned Factory stockpile data 22970 | -5/Upper Caves | Attacked by a delusional Derelict stockpiling parts 23382 | -5/Upper Caves | Discovered new exit (range 8) 23497 | -5/Upper Caves | Entered Zhirov 23497 | -5/Zhirov | Accompanied by 1 ally 23497 | -5/Zhirov | Discovered new exit (range 3) 23561 | -5/Zhirov | Learned location of Command (-1) 23597 | -5/Zhirov | Found Alien Artifact 23597 | -5/Zhirov | Identified Integrated Dissipator 23597 | -5/Zhirov | Installed Integrated Dissipator, increased core heat dissipation (+2%) 23888 | -5/Zhirov | Found Alien Artifact 23953 | -5/Zhirov | Entered Proximity Caves 23953 | -4/Proximity Caves | Accompanied by 1 ally 24012 | -4/Proximity Caves | Spotted B-86 Titan 24157 | -4/Proximity Caves | Learned Research trap positions 24477 | -4/Proximity Caves | Discovered new exit (range 10) 24547 | -4/Proximity Caves | Entered Factory 24547 | -4/Factory | Accompanied by 2 allies 24547 | -4/Factory | Evolved 2 slots: Power x1, Utility x1 24548 | -4/Factory | Loaded intel: 110 trap records 24608 | -4/Factory | Sage 7b assimilated hostile Y-64 Sentinel 24902 | -4/Factory | Sage 7b assimilated hostile W-44 Eye 24984 | -4/Factory | Discovered new exit (range 4) 25072 | -4/Factory | Entered Upper Caves 25072 | -4/Upper Caves | Accompanied by 3 allies 25073 | -4/Upper Caves | Encountered a Warlord checkpoint 25076 | -4/Upper Caves | Learned Research machine intel 25096 | -4/Upper Caves | Learned 4 Research zone layouts 25215 | -4/Upper Caves | Attracted the attention of an 0b10 checkpoint 25828 | -4/Upper Caves | Build established: Trapper-Mutant 25914 | -4/Upper Caves | Discovered new exit (range 12) 26748 | -4/Upper Caves | Entered another Upper Caves area 27164 | -4/Upper Caves | Discovered new exit (range 10) 27585 | -4/Upper Caves | Learned location of 1 exit from Research 27594 | -4/Upper Caves | Discovered new exit (range 41) 27657 | -4/Upper Caves | Learned Research trap positions 27679 | -4/Upper Caves | Entered Research 27679 | -3/Research | Accompanied by 2 allies 27679 | -3/Research | Evolved 2 slots: Utility x2 27680 | -3/Research | Identified exit to Research 27682 | -3/Research | Loaded intel: 99 trap records 27683 | -3/Research | Loaded intel: 92 machine locations 27754 | -3/Research | Found Prototype Processor 27774 | -3/Research | Discovered new exit (range 14) 28155 | -3/Research | Master 8a assimilated hostile H-77 Assassin 28308 | -3/Research | Spotted B-86 Titan 28429 | -3/Research | First assault squad dispatched 28537 | -3/Research | Repaired Prc. Rocket Launcher 28836 | -3/Research | Lost 4 parts (1p1n1u1w) 28902 | -3/Research | Crushed by falling debris 28903 | -3/Research | System corruption reached 10% 28911 | -3/Research | Crushed by falling debris 28939 | -3/Research | Crushed by falling debris 28970 | -3/Research | Lost 4 parts (4u) 28973 | -3/Research | Crushed by falling debris 29281 | -3/Research | System corruption reached 30% 29310 | -3/Research | Entered another Research area 29310 | -2/Research | Evolved 2 slots: Utility x2 29311 | -2/Research | Loaded intel: 72 trap records 30123 | -2/Research | System corruption reached 10% 30166 | -2/Research | Identified Transdimensional Reconstructor 30166 | -2/Research | Warped through subspace 30179 | -2/Research | Discovered new exit (range 8) 30188 | -2/Research | Lost 9 parts (3p2n1u3w) 30205 | -2/Research | Entered Access 30205 | -1/Access | Evolved 2 slots: Propulsion x1, Utility x1 30281 | -1/Access | Spotted B-99 Colossus 30411 | -1/Access | Lost 7 parts (1p4n1u1w) 30430 | -1/Access | System corruption reached 10% 30430 | -1/Access | Released all parts (5) 30461 | -1/Access | Lost 11 parts (3u3w) 30499 | -1/Access | Core integrity fell below 50% 30532 | -1/Access | Found Enh. Force Lance 30541 | -1/Access | Core integrity fell below 20% 30543 | -1/Access | Destroyed by S-43 Plague with Heavy Machine Gun Last Messages --------------- Adv. Heat Sink Myomer Leg Adv. Integration Mediator Lgt. Ion Engine Particle Reactor Enh. Force Lance 30530_ Acquired Lgt. Ion Engine. 30530_ R-10 Processor inserts Wheel into recycling unit. 30532_ Acquired Enh. Force Lance. 30532_ Lgt. Ion Engine destroyed. 30533_ R-10 Processor inserts Sml. Matter Pod into recycling unit. 30536_ Dropped EM Surge Trap. 30536_ Installed EM Surge Trap. 30538_ Slug penetrates Wall. 30540_ U-05 Engineer destroyed. 30541_ G-73 Enforcer triggered EM Surge Trap. 30541_ The floor emits a surge of raw power. 30541_ Penetrated by Slug. 30541_ K-01 Serf collects debris. 30542_ G-73 Enforcer system terminally corrupted. Map ----- +----------------------------------------------------+ | ?????????????????????????????????????????????????? | | ?????????????????????????????????????????????????? | | ?????????????????????????????????????????????????? | | ?????????????????????????????????????????????????? | | ?????????????????????????????????????????????????? | | ?????????????????????????????????????????????????? | | ?????????????????????????????????????????????????? | | ????????????????????????w????????????????????????? | | ??????????????????????????ss?????????????????????? | | ??????????????????????????s?s????????????????????? | | ????????????????????????????ss???????????????????? | | ????????????????????????p??????????#########?????? | | ?????????????????? ????????????????# ""????? | | ?????????????????# ???????????????# "" ??#? | | ?????????????????# ???????????????# """" #? | | ?????????????????# ??????????????# "" """" #? | | ?????????????????# ??????????????# "" !"""" #? | | ?????????????????# ?????????????# ""!!"""" #? | | ?????????????????# ?????????????# "Y """" #? | | ?????????????????# R????????????# ""! ["" #? | | ?????????????????# ????????????# ""*=[ #? | | ?????????????????# ???????????# "" #? | | ?????????????????# ???????????# #? | | ?????????????????# ??????????# #? | | ?????????????????# ##############/##+######? | | ?????????????????# @ =%=g #### | | ?????????????????# g # | | ?????????????????# g # | | ?????????????????# g / | | ?????????????????# # | | ?????????????????# w # | | ?????????????????#s! # | | ???????????????? sss ###+########## # | | ??????????????? ks! ?? ??????????# #! | | ?????????????? g ???????????? # # | | ??????????????h ???????????? + # | | ?????????????? w ?????????????# # | | ???????????????h ?????????????# # | | ?????????????????? ?????????????# ###+ | | ?????????????????????####?????????????# | | ??????????????????????????????????????# | | ??????????????????????????????????????# | | ??????????????????????????????????????# | | ??????????????????????????????????????# | | ??????????????????????????????????????# *! | | ??????????????????????????????????????# =%= | | ??????????????????????????????????????###########/ | | ??????????????????????????????????????????## | | ???????????????????????????????????????????+ % | | ???????????????????????????????????????????# | +----------------------------------------------------+ Best States ------------- Heat Dissipation 129 Coolant Potential 100 Energy Generation 43 Energy Capacity 530 Matter Stores 300 Matter Capacity 300 Sight Range 20 Robot Scan Range 16 Terrain Scan Density 10 Jamming Range 16 Additional Mass Support 9 Armor Coverage 1425 Resistance: KI 30 Resistance: TH 15 Resistance: EM 15 Evasion (%) 50 Targeting Accuracy 8 Melee Accuracy 8 Recoil Reduction 4 Kinecelleration 30 Offensive Hacking 20 Defensive Hacking 10 Item Schematics ----------------- Structural Scanner | -9/Materials | Scanalyzed Adv. Beam Cannon | -9/Materials | Scanalyzed Trap Extractor | -9/Materials | Hacked Arm. Treads | -8/Materials | Scanalyzed Imp. Datajack | -8/Materials | Scanalyzed Beamcaster | -7/Zion | Free Arc Thrower | -7/Zion | Free Slug Cannon | -7/Zion | Free Ripper | -7/Zion | Free Enh. Flamer | -6/Factory | Scanalyzed Arm. Huge Wheel | -5/Factory | Scanalyzed Assault Drone Bay | -5/Zhirov | Free Exp. Heat Sink | -5/Zhirov | Free Exp. Optical Array | -5/Zhirov | Free Imp. Arc Thrower | -5/Zhirov | Free Robot Schematics ------------------ M-14 Sweeper | -8/Mines | Hacked L-31 Rogue | -8/Storage | Hacked I-25 Savior | -8/Storage | Hacked H-55 Commando | -8/Storage | Hacked P-60 Hacker | -7/Factory | Hacked S-27 Virus | -7/Lower Caves | Hacked Fabricated ------------ Trap Extractor | x2 | -7/Factory Arm. Treads | x2 | -7/Factory Arm. Treads | x2 | -7/Factory Alien Tech Used ----------------- Integrated Dissipator Transdimensional Reconstructor Achievements -------------- None Challenges ------------ None Game ------ Seed PortableAccelerationCasing Manual? 0 Play Time 03:19:39 Cumulative 536.8 hours Start 2020.05.13 @ 02:13:24 End 2020.05.13 @ 05:40:07 Sessions 1 Manual Loads 0 Difficulty Rogue Special Mode None Game No. 408 Rogue 404 Adventurer 4 Explorer 0 Win Type - Total 60 Types 50/4/2/2/2/0/0 Lore% 94 Gallery% 96 Achievement% 96 Wizard Run 0 Options --------- ASCII 1 Keyboard 1 Movement Vi Keybinds 0 Fullscreen 0 Font 16/Terminus Map View 76x50 Tactical HUD 1 Map Filters NONE Filters NONE Steam 1 RUN: b16ec2de-5504-4f75-b0ae-58f7ce7cebdb